bitfinex-derivatives/quotes_SOLF0:USTF0_20250501
["timestamp","ask_amount","ask_price","bid_price","bid_amount"]
[1746124735651,6.628,150.82,150.81,7.00263141]
[1746124735853,6.628,150.82,150.79,30.4093]
[1746124736253,6.6278,150.83,150.8,7.00536598]
[1746124736655,6.6278,150.83,150.81,7.00536598]
[1746124736853,6.6278,150.83,150.82,7.00536598]
[1746124740654,4.1244,150.86,150.79,23.78]
[1746124740851,6.6282,150.82,150.79,23.78]
[1746124741051,6.6282,150.82,150.79,30.4093]
[1746124741360,6.6282,150.82,150.8,6.99785771]
[1746124741659,6.6282,150.82,150.81,6.99785771]
[1746124743360,6.6278,150.83,150.81,6.99785771]
[1746124743658,4.1244,150.86,150.82,6.99785771]
[1746124743961,6.6276,150.83,150.82,6.99785771]
[1746124750662,6.6287,150.81,150.78,23.78]
[1746124752360,7.74578284,150.85,150.78,23.78]
[1746124753862,6.6287,150.81,150.78,23.78]
[1746124756169,6.6283,150.82,150.78,23.78]
[1746124756371,31.08205166,150.85,150.78,23.78]
[1746124756874,31.08205166,150.85,150.83,6.6274]
[1746124757075,31.08205166,150.85,150.83,30.4074]
[1746124757775,31.08205166,150.85,150.84,6.6272]
[1746124758578,7.74578284,150.89,150.86,6.6263]
[1746124759379,7.74578284,150.89,150.87,6.6257]
[1746124759580,7.74578284,150.89,150.83,23.78]
[1746124760267,14.37078284,150.89,150.83,23.78]
[1746124760473,7.74578284,150.89,150.83,23.78]
[1746124761282,6.6263,150.87,150.83,30.4073]
[1746124761579,6.6263,150.87,150.83,23.78]
[1746124761779,7.74578284,150.89,150.83,23.78]
[1746124762579,6.6256,150.88,150.84,6.6269]
[1746124762772,6.6256,150.88,150.83,23.78]
[1746124763681,6.6256,150.88,150.85,6.6265]
[1746124765185,6.6256,150.88,150.86,6.6263]
[1746124765378,6.6256,150.88,150.83,23.78]
[1746124766084,6.6256,150.88,150.85,6.6265]
[1746124766785,6.625,150.89,150.86,6.6261]
[1746124767183,31.08205166,150.9,150.83,23.78]
[1746124767383,6.6258,150.88,150.85,6.6265]
[1746124767584,31.08205166,150.9,150.83,23.78]
[1746124767985,6.6258,150.88,150.84,6.627]
[1746124768283,31.08205166,150.9,150.84,6.627]
[1746124768488,6.6257,150.88,150.84,6.627]
[1746124768688,6.6257,150.88,150.85,6.6267]
[1746124769491,6.6252,150.89,150.85,6.6267]
[1746124770391,6.6254,150.88,150.85,6.6267]
[1746124770589,31.08205166,150.9,150.83,23.78]
[1746124771196,6.6256,150.88,150.84,6.6271]
[1746124771595,31.08205166,150.9,150.83,23.78]
[1746124771892,6.6253,150.89,150.85,6.6267]
[1746124772496,6.6259,150.87,150.83,23.78]
[1746124772996,6.6259,150.87,150.83,30.4074]
[1746124773294,6.6259,150.87,150.83,6.6274]
[1746124773698,31.08205166,150.9,150.83,23.76]
[1746124774100,6.6259,150.87,150.83,30.3874]
[1746124775298,6.6259,150.87,150.83,23.76]
[1746124776301,7.74578284,150.88,150.83,23.76]
[1746124776600,31.08205166,150.88,150.83,23.76]
[1746124776800,6.6268,150.85,150.83,23.76]
[1746124776992,31.08205166,150.88,150.83,23.76]
[1746124777197,6.628,150.83,150.8,23.76]
[1746124777595,31.08205166,150.88,150.8,23.76]
[1746124777792,6.6285,150.81,150.76,2.0301]
[1746124777997,6.6285,150.81,150.78,23.76]
[1746124778389,23.76,150.86,150.78,23.76]
[1746124779009,31.08205166,150.85,150.78,23.76]
[1746124779607,6.6274,150.84,150.79,6.629]
[1746124779905,6.6274,150.84,150.78,23.76]
[1746124780097,6.6274,150.84,150.8,6.6286]
[1746124780399,37.70885166,150.85,150.78,23.76]
[1746124780603,37.70885166,150.85,150.79,1.9237]
[1746124781102,37.70885166,150.85,150.8,6.6287]
[1746124781503,31.08205166,150.85,150.79,1.9237]
[1746124781800,14.37228284,150.86,150.79,1.9237]
[1746124782001,6.6269,150.85,150.81,6.6282]
[1746124782190,6.6269,150.85,150.82,23.76]
[1746124782394,7.74578284,150.86,150.82,23.76]
[1746124782595,6.6268,150.85,150.82,23.76]
[1746124783400,6.6272,150.84,150.82,23.76]
[1746124784304,6.6276,150.83,150.82,23.76]
[1746124786103,6.6276,150.83,150.79,8.553]
[1746124786104,6.6282,150.82,150.79,25.6837]
[1746124786306,7.74578284,150.85,150.79,23.76]
[1746124788103,31.08205166,150.84,150.79,23.76]
[1746124789609,6.6281,150.82,150.79,23.76]
[1746124789906,49.12045708,150.84,150.79,23.76]
[1746124790407,6.6283,150.82,150.79,23.76]
[1746124791306,6.6278,150.83,150.79,30.3893]
[1746124791607,49.12045708,150.84,150.79,23.76]
[1746124791907,6.6283,150.82,150.79,23.76]
[1746124792700,6.6285,150.81,150.79,23.76]
[1746124795002,6.6283,150.82,150.79,23.76]
[1746124795208,31.08205166,150.84,150.79,23.76]
[1746124795408,6.6279,150.83,150.79,30.3891]
[1746124795909,6.6283,150.82,150.79,23.76]
[1746124797610,6.6283,150.82,150.79,30.3894]
[1746124797998,6.6278,150.83,150.79,30.3894]
[1746124799910,7.74578284,150.84,150.79,23.76]
[1746124801214,14.37298284,150.84,150.81,6.6281]
[1746124801914,6.6272,150.84,150.81,6.6281]
[1746124803412,7.74578284,150.86,150.79,23.76]
[1746124803915,7.74578284,150.86,150.79,30.3893]
[1746124804212,31.08205166,150.86,150.79,30.3893]
[1746124804518,6.6281,150.82,150.79,23.76]
[1746124805511,6.6276,150.84,150.79,30.3893]
[1746124806819,6.6277,150.83,150.79,30.3893]
[1746124807614,32.45656783,150.83,150.79,30.3893]
[1746124808316,32.45656783,150.83,150.8,6.6289]
[1746124808509,32.45656783,150.83,150.79,23.76]
[1746124808820,32.45656783,150.83,150.79,30.3891]
[1746124809316,18.08308499,150.82,150.79,30.3891]
[1746124811620,24.71118499,150.82,150.79,30.3891]
[1746124813019,14.37388284,150.82,150.79,30.3891]
[1746124818629,14.37388284,150.82,150.79,6.6291]
[1746124819236,18.12814119,150.81,150.79,6.6291]
[1746124822640,24.75684119,150.81,150.78,23.74]
[1746124823937,18.12814119,150.81,150.79,6.6293]
[1746124824337,14.37408284,150.82,150.79,6.6293]
[1746124826543,37.71035166,150.82,150.79,6.6293]
[1746124827042,6.6289,150.81,150.78,30.3697]
[1746124827237,31.08205166,150.82,150.78,23.74]
[1746124827544,37.71045166,150.82,150.79,6.6292]
[1746124828231,37.71045166,150.82,150.78,23.74]
[1746124828432,7.74578284,150.81,150.78,23.74]
[1746124828744,7.74578284,150.81,150.79,6.6292]
[1746124829541,14.37428284,150.81,150.79,6.6292]
[1746124829740,7.74578284,150.81,150.8,6.6289]
[1746124830245,23.33626882,150.82,150.81,6.6285]
[1746124832542,113.32228016,150.84,150.79,1.9827]
[1746124832849,23.37727067,150.86,150.79,1.9827]
[1746124834149,23.37727067,150.86,150.85,6.6267]
[1746124834347,23.37727067,150.86,150.85,30.3467]
[1746124835052,23.37727067,150.86,150.85,23.72]
[1746124835543,6.6261,150.87,150.85,30.3466]
[1746124836051,6.6255,150.88,150.85,30.3466]
[1746124836251,16.52073542,150.92,150.86,6.626]
[1746124836452,16.52073542,150.92,150.85,23.72]
[1746124836644,16.52073542,150.92,150.86,6.6259]
[1746124837052,16.52073542,150.92,150.85,23.72]
[1746124837252,6.6249,150.9,150.85,23.72]
[1746124837452,6.6249,150.9,150.87,6.6258]
[1746124837654,6.6248,150.9,150.87,6.6258]
[1746124838855,2.0615,150.95,150.88,6.6252]
[1746124839055,25.7451,150.93,150.88,6.6252]
[1746124839356,6.6239,150.92,150.88,6.6252]
[1746124839954,6.6242,150.91,150.87,6.6256]
[1746124840151,25.7451,150.93,150.85,23.72]
[1746124840554,6.6246,150.9,150.86,6.626]
[1746124840756,25.7451,150.93,150.85,23.72]
[1746124841555,6.6244,150.91,150.87,6.6258]
[1746124842855,6.6237,150.92,150.85,23.72]
[1746124843455,6.6237,150.92,150.88,6.6251]
[1746124844556,6.6234,150.93,150.89,6.625]
[1746124844962,6.6234,150.93,150.89,30.345]
[1746124845158,6.6234,150.93,150.9,6.6245]
[1746124845354,6.6223,150.96,150.89,23.72]
[1746124845558,4.1434,150.98,150.9,6.6243]
[1746124845756,4.1434,150.98,150.89,23.72]
[1746124845953,6.6234,150.93,150.89,23.72]
[1746124846263,6.6234,150.93,150.89,30.3449]
[1746124846455,6.6239,150.92,150.89,23.72]
[1746124846656,4.1434,150.98,150.89,23.72]
[1746124848060,6.623,150.94,150.9,6.6245]
[1746124849465,6.6233,150.93,150.89,30.3447]
[1746124849658,4.1434,150.98,150.89,23.72]
[1746124850159,6.6229,150.94,150.89,23.72]
[1746124850665,6.6229,150.94,150.9,6.6243]
[1746124850867,4.1434,150.98,150.89,23.72]
[1746124851162,4.1434,150.98,150.89,30.3446]
[1746124851363,6.623,150.94,150.89,23.72]
[1746124851660,6.623,150.94,150.9,6.6244]
[1746124853865,4.1434,150.98,150.9,6.6244]
[1746124854067,4.1434,150.98,150.89,23.72]
[1746124855070,4.1434,150.98,150.9,6.6242]
[1746124855466,4.1434,150.98,150.89,23.72]
[1746124855867,4.1434,150.98,150.91,6.624]
[1746124856166,4.1434,150.98,150.89,23.72]
[1746124856869,6.6222,150.96,150.92,6.6234]
[1746124857067,4.1434,150.98,150.89,23.72]
[1746124857468,4.1434,150.98,150.9,6.6241]
[1746124858167,6.6228,150.94,150.9,6.6241]
[1746124858359,4.1434,150.98,150.89,23.72]
[1746124858868,6.6221,150.96,150.92,6.6233]
[1746124859069,6.6221,150.96,150.89,23.72]
[1746124859269,2.0794,150.98,150.89,23.72]
[1746124859768,6.6217,150.97,150.93,6.623]
[1746124859970,6.6217,150.97,150.93,30.303]
[1746124860670,6.6217,150.97,150.94,6.6227]
[1746124861171,8.7006,150.98,150.94,6.6227]
[1746124861374,1.9512,151.01,150.95,6.6222]
[1746124861763,61.99453793,151.02,150.93,23.68]
[1746124862268,6.6213,150.98,150.93,23.68]
[1746124862472,61.99453793,151.02,150.93,23.68]
[1746124862877,6.6217,150.97,150.93,30.303]
[1746124863076,61.99453793,151.02,150.93,23.68]
[1746124863572,6.6222,150.96,150.93,23.68]
[1746124864474,6.6216,150.97,150.93,30.3032]
[1746124865276,6.622,150.96,150.93,23.68]
[1746124865878,23.68,151.01,150.93,23.68]
[1746124866176,23.68,151.01,150.9,23.68]
[1746124866377,6.6237,150.92,150.9,23.68]
[1746124867270,6.6233,150.93,150.9,23.68]
[1746124868977,6.6237,150.92,150.9,23.68]
[1746124871075,6.6234,150.93,150.9,23.68]
[1746124872278,6.623,150.94,150.9,30.3044]
[1746124872575,2.121,150.96,150.9,23.68]
[1746124873082,6.6232,150.93,150.9,23.68]
[1746124874372,6.623,150.94,150.9,23.68]
[1746124874577,2.121,150.96,150.9,23.68]
[1746124874879,6.6232,150.93,150.9,23.68]
[1746124877574,6.6237,150.92,150.9,23.68]
[1746124877784,2.121,150.96,150.9,23.68]
[1746124878088,6.6234,150.93,150.9,23.68]
[1746124878889,6.6234,150.93,150.9,30.3044]
[1746124879085,6.6234,150.93,150.9,23.68]
[1746124880992,2.121,150.96,150.87,2.0885]
[1746124881181,2.121,150.96,150.86,25.7859]
[1746124881382,2.121,150.96,150.86,23.68]
[1746124881582,6.6244,150.91,150.86,23.68]
[1746124882687,6.6244,150.91,150.87,6.6258]
[1746124883690,6.6246,150.9,150.86,30.3061]
[1746124884287,6.6246,150.9,150.87,6.6258]
[1746124885292,6.6243,150.91,150.87,6.6258]
[1746124886685,6.6246,150.9,150.87,6.6258]
[1746124886985,6.6246,150.9,150.86,30.3061]
[1746124887884,6.6246,150.9,150.87,6.6258]
[1746124888085,6.6243,150.91,150.86,23.68]
[1746124888493,6.6243,150.91,150.87,6.6256]
[1746124889192,6.6243,150.91,150.88,6.6254]
[1746124894396,9.91579453,150.96,150.87,6.6256]
[1746124894595,9.91579453,150.96,150.86,23.68]
[1746124895095,6.6242,150.91,150.86,23.68]
[1746124895689,6.6242,150.91,150.87,6.6255]
[1746124895890,6.6246,150.9,150.87,6.6255]
[1746124896496,6.6243,150.91,150.87,6.6255]
[1746124897593,6.6243,150.91,150.88,6.6254]
[1746124897894,6.6238,150.92,150.88,6.6254]
[1746124898298,6.6238,150.92,150.89,6.625]
[1746124898691,6.6238,150.92,150.86,23.68]
[1746124898891,6.6238,150.92,150.88,6.6251]
[1746124900599,6.6241,150.91,150.88,6.6251]
[1746124901000,6.6241,150.91,150.87,6.6257]
[1746124901502,6.6241,150.91,150.86,23.68]
[1746124901802,6.6246,150.9,150.86,23.68]
[1746124902402,6.6243,150.91,150.86,23.68]
[1746124902602,23.66,150.93,150.86,23.68]
[1746124902903,6.6242,150.91,150.88,6.6251]
[1746124905806,6.6246,150.9,150.87,6.6257]
[1746124906301,6.6243,150.91,150.88,6.6253]
[1746124909408,6.6246,150.9,150.88,6.6253]
[1746124909705,23.66,150.93,150.88,6.6253]
[1746124909904,6.6244,150.91,150.88,6.6253]
[1746124911604,6.6239,150.92,150.88,6.6253]
[1746124912103,23.66,150.93,150.88,6.6253]
[1746124913005,6.6239,150.92,150.88,6.6253]
[1746124913405,6.6241,150.91,150.88,6.6253]
[1746124914810,23.66,150.93,150.86,23.68]
[1746124915205,1.9456,150.92,150.86,23.68]
[1746124915407,6.6252,150.89,150.86,23.68]
[1746124916007,1.9456,150.92,150.86,23.68]
[1746124916398,6.6239,150.92,150.88,6.6251]
[1746124916810,25.7923,150.93,150.86,23.68]
[1746124917013,25.7923,150.93,150.87,6.96470185]
[1746124917609,6.6249,150.9,150.88,6.96470185]
[1746124917809,25.7923,150.93,150.88,6.96470185]
[1746124918212,6.625,150.89,150.86,23.68]
[1746124918509,6.625,150.89,150.87,6.96477432]
[1746124918905,23.66,150.93,150.87,6.6258]
[1746124920013,6.6244,150.91,150.87,6.6258]
[1746124920602,6.6244,150.91,150.86,23.68]
[1746124921013,6.6244,150.91,150.87,6.6256]
[1746124921313,6.6246,150.9,150.87,6.6256]
[1746124921714,23.66,150.93,150.86,30.306]
[1746124922114,23.66,150.93,150.86,23.68]
[1746124922314,6.6257,150.88,150.86,23.68]
[1746124922718,6.6257,150.88,150.84,6.6269]
[1746124923715,6.6257,150.88,150.85,6.6266]
[1746124924318,6.6257,150.88,150.84,6.627]
[1746124924616,2.0276,150.91,150.83,23.64]
[1746124924816,4.1358,150.91,150.83,23.64]
[1746124925213,6.6266,150.86,150.83,23.64]
[1746124925513,2.1012,150.9,150.83,30.2674]
[1746124926016,6.6261,150.87,150.83,30.2674]
[1746124927016,6.6261,150.87,150.83,23.64]
[1746124927322,2.1012,150.9,150.83,23.64]
[1746124927725,6.6253,150.89,150.85,6.6265]
[1746124930220,8.7259,150.9,150.83,23.64]
[1746124930417,6.6247,150.9,150.86,6.626]
[1746124931221,6.6251,150.89,150.86,6.626]
[1746124931525,4.1358,150.91,150.86,6.626]
[1746124931828,6.6248,150.9,150.86,6.626]
[1746124932124,4.1358,150.91,150.83,23.64]
[1746124932326,6.6262,150.87,150.83,23.64]
[1746124932722,4.1358,150.91,150.83,23.64]
[1746124933624,4.1358,150.91,150.8,23.64]
[1746124933830,4.1358,150.91,150.82,6.6279]
[1746124934121,6.6265,150.86,150.82,6.6279]
[1746124934624,6.6268,150.85,150.82,6.6279]
[1746124935020,6.6268,150.85,150.81,6.6282]
[1746124935226,6.6272,150.84,150.81,6.6282]
[1746124935420,6.6272,150.84,150.8,23.64]
[1746124935615,6.6272,150.84,150.8,30.2687]
[1746124936023,6.6272,150.84,150.8,23.64]
[1746124936526,6.6269,150.85,150.81,6.6285]
[1746124936722,25.6605,150.89,150.81,6.6285]
[1746124937028,25.6605,150.89,150.8,23.64]
[1746124937227,6.6273,150.84,150.81,6.90312773]
[1746124937626,6.6273,150.84,150.82,6.90312773]
[1746124937828,6.627,150.85,150.82,6.90312773]
[1746124938224,6.627,150.85,150.83,6.90312773]
[1746124938620,33.45529453,150.89,150.83,6.90312773]
[1746124938822,33.45529453,150.89,150.84,6.90312773]
[1746124939028,33.45529453,150.89,150.8,23.64]
[1746124939927,6.6266,150.86,150.82,6.6278]
[1746124942132,6.6266,150.86,150.83,6.6275]
[1746124942333,6.626,150.87,150.83,6.6275]
[1746124942731,25.6605,150.89,150.83,6.6275]
[1746124944235,6.6263,150.87,150.83,6.6275]
[1746124945637,6.6264,150.86,150.82,6.6279]
[1746124948133,6.6267,150.85,150.82,6.6279]
[1746124948739,25.6605,150.89,150.81,6.6283]
[1746124950137,6.6271,150.85,150.81,6.6283]
[1746124950325,25.6605,150.89,150.81,6.6283]
[1746124950529,25.6605,150.89,150.8,30.2687]
[1746124950738,6.6274,150.84,150.8,30.2687]
[1746124952242,6.627,150.85,150.81,6.6284]
[1746124953237,6.6264,150.86,150.8,23.64]
[1746124953437,25.6605,150.89,150.8,23.64]
[1746124953739,25.6605,150.89,150.83,6.6273]
[1746124954541,6.6261,150.87,150.84,6.6272]
[1746124954749,25.6605,150.89,150.8,23.64]
[1746124955239,25.6605,150.89,150.82,6.6279]
[1746124955844,6.6268,150.85,150.81,6.6281]
[1746124956740,6.6268,150.85,150.81,6.6283]
[1746124957438,25.6605,150.89,150.81,6.6283]
[1746124957740,25.6605,150.89,150.8,30.2688]
[1746124957942,6.6276,150.83,150.8,30.2688]
[1746124959142,6.6274,150.84,150.8,6.6288]
[1746124960143,6.6277,150.83,150.8,6.6288]
[1746124960641,6.6277,150.83,150.81,7.05807087]
[1746124961144,6.628,150.82,150.81,7.05807087]
[1746124961337,6.628,150.82,150.79,555.0293]
[1746124961641,7.79479453,150.88,150.8,7.05871807]
[1746124961836,6.6286,150.81,150.8,7.05871807]
[1746124962445,6.6282,150.82,150.79,23.64]
[1746124962648,7.79479453,150.88,150.79,23.64]
[1746124962944,7.79479453,150.88,150.8,6.64629179]
[1746124963142,7.79479453,150.88,150.81,6.64629179]
[1746124963344,7.79479453,150.88,150.82,6.64629179]
[1746124963532,7.79479453,150.88,150.79,23.64]
[1746124963733,6.6281,150.82,150.8,6.64574924]
[1746124963941,6.6281,150.82,150.81,6.64574924]
[1746124966049,6.6278,150.83,150.81,6.64574924]
[1746124966250,6.6278,150.83,150.79,30.2694]
[1746124966548,6.6278,150.83,150.8,6.64520321]
[1746124966750,6.6278,150.83,150.81,6.64520321]
[1746124966945,6.6278,150.83,150.79,23.64]
[1746124967144,6.6278,150.83,150.8,6.64589602]
[1746124967348,6.6278,150.83,150.81,6.64589602]
[1746124967546,6.6278,150.83,150.79,30.2694]
[1746124967748,6.6278,150.83,150.8,6.64558444]
[1746124968048,23.64,150.85,150.81,6.64558444]
[1746124968252,23.64,150.85,150.82,6.64558444]
[1746124968441,23.64,150.85,150.79,23.64]
[1746124968637,23.64,150.85,150.8,6.6456224]
[1746124968842,31.08678496,150.87,150.81,6.6456224]
[1746124969050,37.71288496,150.87,150.83,6.6273]
[1746124969649,6.6264,150.86,150.82,6.6279]
[1746124970652,6.6264,150.86,150.83,6.6275]
[1746124970952,6.626,150.87,150.83,6.6275]
[1746124971141,6.626,150.87,150.79,23.64]
[1746124971345,6.626,150.87,150.84,6.6271]
[1746124972255,6.6263,150.86,150.83,6.6275]
[1746124973054,6.6261,150.87,150.83,6.6275]
[1746124973855,6.6264,150.86,150.83,6.6275]
[1746124974957,6.6264,150.86,150.82,6.6279]
[1746124975659,6.6264,150.86,150.83,6.6276]
[1746124977868,6.6264,150.86,150.79,23.64]
[1746124978168,23.64,150.89,150.79,23.64]
[1746124978471,6.627,150.85,150.8,6.6286]
[1746124978665,6.627,150.85,150.79,23.64]
[1746124979070,6.627,150.85,150.81,6.6285]
[1746124979771,23.64,150.89,150.82,7.03330959]
[1746124980170,23.64,150.89,150.83,13.58088582]
[1746124980372,23.64,150.89,150.84,13.58088582]
[1746124980565,31.43479453,150.89,150.85,7.03330959]
[1746124981374,31.43479453,150.89,150.86,7.03330959]
[1746124981575,6.6261,150.87,150.86,7.03330959]
[1746124982675,6.6261,150.87,150.83,6.6274]
[1746124982974,6.6263,150.86,150.83,6.6274]
[1746124983175,6.6263,150.86,150.82,6.6279]
[1746124983974,23.64,150.89,150.79,23.64]
[1746124984176,2.019,150.88,150.79,23.64]
[1746124985377,6.6275,150.84,150.8,6.6289]
[1746124985572,2.019,150.88,150.79,23.64]
[1746124985775,1.9832,150.87,150.79,23.64]
[1746124986172,6.628,150.83,150.79,30.2692]
[1746124986377,6.628,150.83,150.79,23.64]
[1746124986871,6.628,150.83,150.79,30.2692]
[1746124988276,6.6281,150.82,150.79,23.64]
[1746124988476,23.6,150.86,150.79,23.64]
[1746124988668,25.5512,150.86,150.79,23.64]
[1746124989179,6.6284,150.82,150.79,23.64]
[1746124989578,6.6284,150.82,150.79,30.2693]
[1746124990578,6.6284,150.82,150.8,6.92205432]
[1746124990878,25.5512,150.86,150.81,6.92205432]
[1746124991079,25.5512,150.86,150.82,6.92205432]
[1746124991579,6.6275,150.84,150.8,6.6288]
[1746124991883,9.77799453,150.87,150.79,23.64]
[1746124992080,6.6265,150.86,150.79,23.64]
[1746124992379,9.77799453,150.87,150.82,6.6278]
[1746124992882,6.6265,150.86,150.82,6.6278]
[1746124993078,9.77799453,150.87,150.81,6.6284]
[1746124993579,6.627,150.85,150.81,6.6284]
[1746124995888,6.6272,150.84,150.81,6.6284]
[1746124997673,6.6269,150.85,150.81,6.6284]
[1746124999186,6.6272,150.84,150.81,6.6284]
[1746124999386,1.9832,150.87,150.8,6.6287]
[1746124999687,6.6276,150.84,150.81,6.89315115]
[1746125000291,6.6276,150.84,150.82,6.89315115]
[1746125000590,1.9832,150.87,150.83,6.89315115]
[1746125000789,7.79479453,150.89,150.83,6.89315115]
[1746125000982,6.6261,150.87,150.83,13.52055115]
[1746125001293,6.6261,150.87,150.84,6.89315115]
[1746125001584,6.6261,150.87,150.83,6.6274]
[1746125001585,6.6256,150.88,150.85,6.89315115]
[1746125002091,6.6256,150.88,150.86,6.89315115]
[1746125002390,6.6256,150.88,150.87,6.89315115]
[1746125003292,6.625,150.89,150.87,6.89315115]
[1746125003986,6.625,150.89,150.88,6.89315115]
[1746125004492,30.2247,150.9,150.88,6.89315115]
[1746125004693,6.6247,150.9,150.88,6.89315115]
[1746125005088,6.6247,150.9,150.89,6.89315115]
[1746125005291,8.5531,150.91,150.89,6.89315115]
[1746125005492,6.6243,150.91,150.89,6.89315115]
[1746125005688,54.68678496,150.92,150.89,6.89315115]
[1746125006188,54.68678496,150.92,150.86,6.626]
[1746125006388,6.6245,150.9,150.86,6.626]
[1746125007593,6.6243,150.91,150.87,6.6258]
[1746125007793,23.6,150.92,150.84,1.9869]
[1746125008197,6.6249,150.9,150.86,6.6261]
[1746125009898,6.625,150.89,150.86,6.6261]
[1746125010292,6.625,150.89,150.85,6.6266]
[1746125011705,6.6254,150.88,150.85,6.6266]
[1746125014902,6.6259,150.87,150.84,8.6139]
[1746125015107,23.6,150.92,150.84,8.6139]
[1746125015906,23.6,150.92,150.84,1.9869]
[1746125016505,6.6258,150.88,150.84,8.614]
[1746125016809,23.6,150.92,150.84,6.6271]
[1746125017003,23.6,150.92,150.83,30.2273]
[1746125017203,23.6,150.92,150.83,23.6]
[1746125018108,6.6253,150.89,150.83,23.6]
[1746125018404,6.6253,150.89,150.85,6.6265]
[1746125019116,6.6253,150.89,150.86,6.6263]
[1746125019318,6.6247,150.9,150.83,23.6]
[1746125019617,6.6247,150.9,150.86,6.6259]
[1746125022618,6.6251,150.89,150.86,6.6259]
[1746125024821,6.6246,150.9,150.87,6.6257]
[1746125025020,23.6,150.92,150.83,23.6]
[1746125025220,23.6,150.92,150.84,3.963]
[1746125025415,6.6246,150.9,150.87,6.6255]
[1746125025819,6.6246,150.9,150.84,3.963]
[1746125026919,6.6246,150.9,150.87,6.6256]
[1746125028023,6.6246,150.9,150.88,6.6254]
[1746125029320,6.6243,150.91,150.88,6.6254]
[1746125030422,6.6245,150.9,150.88,6.6254]
[1746125030724,58.71538496,150.95,150.89,6.6248]
[1746125031826,6.6235,150.93,150.89,6.6248]
[1746125033227,58.71538496,150.95,150.87,23.58]
[1746125033425,31.08678496,150.97,150.87,23.58]
[1746125033825,37.70868496,150.97,150.87,23.58]
[1746125034114,31.08678496,150.97,150.87,23.58]
[1746125034321,6.6222,150.96,150.92,6.6234]
[1746125034527,31.08678496,150.97,150.92,6.6234]
[1746125035324,6.6223,150.96,150.92,6.6234]
[1746125036124,6.6223,150.96,150.93,6.6232]
[1746125036527,6.6223,150.96,150.91,23.58]
[1746125036728,6.6223,150.96,150.92,6.6234]
[1746125038128,6.6224,150.95,150.91,30.2039]
[1746125038428,23.58,150.98,150.91,30.2039]
[1746125038429,23.58,150.98,150.91,23.58]
[1746125038622,6.6228,150.94,150.91,23.58]
[1746125039023,23.58,150.98,150.88,23.56]
[1746125039221,6.6235,150.93,150.88,30.185]
[1746125039425,6.6235,150.93,150.88,23.56]
[1746125040029,6.6235,150.93,150.89,6.6248]
[1746125040219,23.58,150.98,150.89,6.6248]
[1746125040922,6.6235,150.93,150.89,6.6248]
[1746125041124,23.58,150.98,150.89,6.6247]
[1746125041329,6.6221,150.96,150.88,23.56]
[1746125042531,6.6224,150.95,150.88,23.56]
[1746125043121,6.6224,150.95,150.91,6.6239]
[1746125044635,6.6228,150.94,150.91,6.6239]
[1746125044931,31.08678496,150.97,150.91,6.6239]
[1746125045132,6.6225,150.95,150.91,6.6239]
[1746125045627,23.58,150.98,150.91,6.6239]
[1746125045832,6.6227,150.95,150.91,6.6239]
[1746125046633,6.6227,150.95,150.92,6.6236]
[1746125050225,6.6227,150.95,150.91,6.6239]
[1746125050430,23.58,150.98,150.87,23.56]
[1746125051437,6.6239,150.92,150.88,6.6252]